fUSD/lending_fUSD_20241201
["ID","MTS","AMOUNT","RATE_DAILY","PERIOD"]
[343907658,1733028637928,-150.0,7.998e-05,2]
[343907659,1733028637938,-150.0,7.998e-05,2]
[343907660,1733028637947,-150.0,7.998e-05,2]
[343907661,1733028637957,-150.0,7.998e-05,2]
[343907662,1733028637967,-150.0,7.998e-05,2]
[343907663,1733028637979,-150.0,7.998e-05,2]
[343907664,1733028637989,-654.19,7.998e-05,2]
[343907665,1733028637999,-2774.06609784,7.999e-05,2]
[343907666,1733028638009,-532.56,7.999e-05,2]
[343907667,1733028638020,-19371.87711566,8e-05,2]
[343907668,1733028638033,-697.22222227,8e-05,2]
[343907669,1733028638045,-562.99496502,8e-05,2]
[343907670,1733028638083,-443.81585153,8e-05,2]
[343907671,1733028638118,-22323.91042253,8e-05,2]
[343907672,1733028638130,-3933.28328103,8e-05,2]
[343907679,1733028639776,-685.408,8e-05,2]
[343907680,1733028639787,-4312.468795,8e-05,2]
[343907681,1733028639799,-571.72170112,8e-05,2]
[343907682,1733028639945,-248.7,7.998e-05,2]
[343907683,1733028639955,-749.75,8e-05,2]
[343907684,1733028642580,-3098.36916934,8e-05,2]
[343907685,1733028642901,-337.9608,8e-05,2]
[343907697,1733028645621,-4301.26590253,8e-05,2]
[343907701,1733028844729,-345.211645,0.00019,30]
[343907702,1733028844753,-350.32685491,0.00019,30]
[343907703,1733028844779,-4000.0,0.0001901,30]
[343907708,1733029504784,197.0,3.9e-05,2]
[343907709,1733029564882,150.0,3.9e-05,2]
[343907710,1733029564904,31.0,3.9e-05,2]
[343907712,1733029625429,150.0,3.9e-05,2]
[343907713,1733029625451,45.0,3.9e-05,2]
[343907717,1733029704549,-153.43699777,7.2e-05,2]
[343907718,1733029704575,-23890.0,7.358e-05,2]
[343907719,1733029741986,214.42,5.926e-05,2]
[343907724,1733029831935,-250.0,7.405e-05,2]
[343907725,1733029831945,-200.0,7.415e-05,2]
[343907726,1733029831956,-352.33,7.467e-05,2]
[343907727,1733029831968,-416.6296,7.9e-05,2]
[343907728,1733029831978,-500.0,7.973e-05,2]
[343907729,1733029831991,-973.17,7.98e-05,2]
[343907730,1733029832001,-300.0,7.993e-05,2]
[343907731,1733029832011,-150.0,7.994e-05,2]
[343907732,1733029832021,-150.0,7.994e-05,2]
[343907733,1733029832030,-150.0,7.994e-05,2]
[343907734,1733029832040,-150.0,7.994e-05,2]
[343907735,1733029832051,-150.0,7.994e-05,2]
[343907736,1733029832061,-150.0,7.994e-05,2]
[343907737,1733029832070,-150.0,7.994e-05,2]
[343907738,1733029832081,-150.0,7.994e-05,2]
[343907739,1733029832102,-150.0,7.994e-05,2]
[343907740,1733029832122,-150.0,7.994e-05,2]
[343907741,1733029832132,-150.0,7.994e-05,2]
[343907742,1733029832142,-150.0,7.994e-05,2]
[343907743,1733029832152,-150.0,7.994e-05,2]
[343907744,1733029832163,-150.0,7.994e-05,2]
[343907745,1733029832172,-150.0,7.994e-05,2]
[343907746,1733029832182,-153.532,7.998e-05,2]
[343907748,1733029832191,-816.0,7.998e-05,2]
[343907750,1733029832203,-534.0,7.998e-05,2]
[343907752,1733029832219,-717.079,7.998e-05,2]
[343907754,1733029832237,-150.0,7.998e-05,2]
[343907756,1733029832251,-1387.03304892,7.999e-05,2]
[343907759,1733029832262,-3181.54347005,7.999e-05,2]
[343907761,1733029832273,-510.37,7.999e-05,2]
[343907763,1733029832283,-5018.31288177,7.999e-05,2]
[343907765,1733029832295,-13338.94083275,7.999e-05,2]
[343907767,1733029832307,-12840.33403388,7.999e-05,2]
[343907770,1733029832332,-1239.10782921,7.999e-05,2]
[343907773,1733029832349,-119123.52088433,7.999e-05,2]
[343907775,1733029832359,-466798.30202974,8e-05,2]
[343907801,1733029837805,-289.4002629,8e-05,2]
[343907805,1733029839747,-215.83,7.807e-05,2]
[343907806,1733029839757,-1387.03304892,7.999e-05,2]
[343907807,1733029839767,-56148.48652923,8e-05,2]
[343907808,1733029839779,-37130.01635169,8e-05,2]
[343907809,1733029839911,-322.96444007,8e-05,2]
[343907812,1733029842715,-1931.8,8e-05,2]
[343907813,1733029843038,-28500.00005,8e-05,2]
[343907820,1733030545913,16897.5369771,0.0001901,30]
[343907821,1733030756013,150.0,6.94e-05,2]
[343907822,1733030819935,11080.94377988,0.0001899,30]
[343907838,1733030990181,1055.0,7.168e-05,2]
[343907839,1733031011399,1055.0,7.168e-05,2]
[343907846,1733031032192,-1055.0,7.34e-05,2]
[343907847,1733031032203,-281.86,7.675e-05,2]
[343907848,1733031032214,-1055.0,7.727e-05,2]
[343907849,1733031032224,-601.0,7.973e-05,2]
[343907850,1733031032233,-150.0,7.998e-05,2]
[343907851,1733031032243,-150.0,7.998e-05,2]
[343907852,1733031032252,-150.0,7.998e-05,2]
[343907853,1733031032262,-150.0,7.998e-05,2]
[343907854,1733031032271,-150.0,7.998e-05,2]
[343907855,1733031032281,-150.0,7.998e-05,2]
[343907856,1733031032291,-150.0,7.998e-05,2]
[343907857,1733031032301,-150.0,7.998e-05,2]
[343907858,1733031032311,-150.0,7.998e-05,2]
[343907859,1733031032320,-150.0,7.998e-05,2]
[343907860,1733031032331,-150.0,7.998e-05,2]
[343907861,1733031032341,-150.0,7.998e-05,2]
[343907862,1733031032351,-150.0,7.998e-05,2]
[343907863,1733031032360,-150.0,7.998e-05,2]
[343907864,1733031032370,-150.0,7.998e-05,2]
[343907865,1733031032379,-150.0,7.998e-05,2]
[343907866,1733031032389,-816.0,7.999e-05,2]
[343907867,1733031032399,-407.82,7.999e-05,2]
[343907868,1733031032409,-633.0,7.999e-05,2]
[343907869,1733031032418,-890.155,7.999e-05,2]
[343907870,1733031032428,-170.034,7.999e-05,2]
[343907871,1733031032437,-500.0,7.999e-05,2]
[343907872,1733031032447,-44449.44793799,7.999e-05,2]
[343907873,1733031032458,-236405.68306197,8e-05,2]
[343907874,1733031032488,-1650.19,8e-05,2]
[343907877,1733031032572,1055.0,7.168e-05,2]
[343907895,1733031039912,-423.9665,8e-05,2]
[343907896,1733031040022,-2413.14789288,8e-05,2]
[343907897,1733031040135,-2070.36,8e-05,2]
[343907906,1733031042893,-13523.57142053,8e-05,2]
[343907908,1733031043282,-3626.76108272,8e-05,2]
[343907909,1733031043294,-1976.93704632,8e-05,2]
[343907917,1733031045945,-528.55598,8e-05,2]
[343907918,1733031045958,-485.115,8e-05,2]
[343907919,1733031045969,-475.962625,8e-05,2]
[343907920,1733031046058,-1182.90000015,8e-05,2]
[343907921,1733031420674,161.06034807,7.167e-05,2]
[343907924,1733031529168,359.72985877,0.0001901,30]
[343907925,1733031731877,150.82282769,7e-05,2]
[343907928,1733031875154,150.01,5.766e-05,2]
[343907929,1733032002841,338.10682424,7.133e-05,2]
[343907930,1733032002867,1489.66317576,7.133e-05,2]
[343907931,1733032041338,7868.2,7.033e-05,2]
[343907933,1733032097948,864.61,6.895e-05,2]
[343907954,1733032232201,-172.66,7.23e-05,2]
[343907955,1733032232211,-300.0,7.467e-05,2]
[343907956,1733032232221,-12840.9,7.468e-05,2]
[343907957,1733032232232,-173.25,7.556e-05,2]
[343907958,1733032232242,-150.0,7.737e-05,2]
[343907959,1733032232252,-150.0,7.738e-05,2]
[343907960,1733032232262,-150.0,7.749e-05,2]
[343907961,1733032232271,-150.0,7.753e-05,2]
[343907962,1733032232282,-150.0,7.756e-05,2]
[343907963,1733032232291,-150.0,7.764e-05,2]
[343907964,1733032232302,-500.0,7.781e-05,2]
[343907965,1733032232311,-150.0,7.783e-05,2]
[343907966,1733032232321,-150.0,7.795e-05,2]
[343907967,1733032232331,-150.0,7.799e-05,2]
[343907968,1733032232342,-150.0,7.801e-05,2]
[343907969,1733032232353,-150.0,7.811e-05,2]
[343907970,1733032232362,-150.0,7.813e-05,2]
[343907971,1733032232373,-150.0,7.821e-05,2]
[343907972,1733032232382,-150.0,7.823e-05,2]
[343907973,1733032232393,-150.0,7.835e-05,2]
[343907974,1733032232402,-150.0,7.842e-05,2]
[343907975,1733032232412,-150.0,7.845e-05,2]
[343907976,1733032232421,-150.0,7.853e-05,2]
[343907977,1733032232432,-150.0,7.854e-05,2]
[343907978,1733032232441,-150.0,7.857e-05,2]
[343907979,1733032232451,-150.0,7.876e-05,2]
[343907980,1733032232461,-150.0,7.886e-05,2]
[343907981,1733032232470,-150.0,7.896e-05,2]
[343907982,1733032232479,-150.0,7.906e-05,2]
[343907984,1733032232489,-150.0,7.931e-05,2]
[343907986,1733032232499,-150.0,7.94e-05,2]
[343907988,1733032232510,-150.0,7.951e-05,2]
[343907989,1733032232532,-150.0,7.954e-05,2]
[343907990,1733032232553,-150.0,7.958e-05,2]
[343907991,1733032232563,-150.0,7.959e-05,2]
[343907992,1733032232573,-150.0,7.963e-05,2]
[343907993,1733032232583,-35214.0,7.973e-05,2]
[343907994,1733032232597,-150.0,7.975e-05,2]
[343907995,1733032232607,-150.0,7.977e-05,2]
[343907997,1733032232616,-150.0,7.98e-05,2]
[343907999,1733032232627,-150.0,7.987e-05,2]
[343908001,1733032232637,-35862.60380202,7.988e-05,2]
[343908002,1733032232647,-332.812621,7.99e-05,2]
[343908003,1733032232657,-38191.24590122,7.99e-05,2]
[343908004,1733032232667,-711.3644089,7.99e-05,2]
[343908005,1733032232677,-2330.73462638,7.99e-05,2]
[343908006,1733032232687,-13792.2129106,7.99e-05,2]
[343908007,1733032232696,-34909.8804524,7.99e-05,2]
[343908008,1733032232706,-332.812621,7.995e-05,2]
[343908009,1733032232716,-332.812621,7.995e-05,2]
[343908010,1733032232726,-332.812621,7.995e-05,2]
[343908011,1733032232736,-332.812621,7.995e-05,2]
[343908012,1733032232746,-11104.4996254,7.995e-05,2]
[343908013,1733032232756,-8416.7863403,7.995e-05,2]
[343908014,1733032233051,-5729.0730551,7.995e-05,2]
[343908015,1733032233067,-3041.35977,7.995e-05,2]
[343908016,1733032233077,-28106.9293898,7.995e-05,2]
[343908017,1733032233089,-21303.9783273,7.995e-05,2]
[343908018,1733032233099,-14501.0272648,7.995e-05,2]
[343908019,1733032233110,-7698.0762023,7.995e-05,2]
[343908020,1733032233120,-150.0,7.998e-05,2]
[343908021,1733032233132,-150.0,7.998e-05,2]
[343908022,1733032233142,-150.0,7.998e-05,2]
[343908023,1733032233151,-150.0,7.998e-05,2]
[343908024,1733032233161,-150.0,7.998e-05,2]
[343908025,1733032233171,-150.0,7.998e-05,2]
[343908026,1733032233181,-150.0,7.998e-05,2]
[343908027,1733032233190,-150.0,7.998e-05,2]
[343908028,1733032233200,-150.0,7.998e-05,2]
[343908029,1733032233209,-150.0,7.998e-05,2]
[343908030,1733032233219,-150.0,7.998e-05,2]
[343908031,1733032233229,-150.0,7.998e-05,2]
[343908032,1733032233239,-150.0,7.998e-05,2]
[343908033,1733032233249,-150.0,7.998e-05,2]
[343908034,1733032233259,-150.0,7.998e-05,2]
[343908035,1733032233268,-817.532,7.998e-05,2]
[343908036,1733032233278,-4647942.62692663,8e-05,2]
[343908037,1733032233304,-20612.91747979,8e-05,2]
[343908039,1733032238189,-150.0,7.75e-05,2]
[343908040,1733032238200,-150.0,7.753e-05,2]
[343908041,1733032238210,-150.0,7.753e-05,2]
[343908042,1733032238220,-150.0,7.761e-05,2]
[343908043,1733032238230,-150.0,7.779e-05,2]
[343908044,1733032238240,-150.0,7.799e-05,2]
[343908045,1733032238251,-150.0,7.806e-05,2]
[343908046,1733032238261,-150.0,7.814e-05,2]
[343908047,1733032238271,-150.0,7.814e-05,2]
[343908048,1733032238282,-150.0,7.817e-05,2]
[343908049,1733032238291,-150.0,7.826e-05,2]
[343908050,1733032238301,-150.0,7.83e-05,2]
[343908051,1733032238310,-150.0,7.839e-05,2]
[343908052,1733032238320,-150.0,7.841e-05,2]
[343908053,1733032238329,-150.0,7.855e-05,2]
[343908054,1733032238341,-150.0,7.872e-05,2]
[343908055,1733032238350,-150.0,7.885e-05,2]
[343908056,1733032238360,-150.0,7.911e-05,2]
[343908057,1733032238370,-150.0,7.917e-05,2]
[343908058,1733032238381,-150.0,7.918e-05,2]
[343908059,1733032238391,-150.0,7.934e-05,2]
[343908060,1733032238401,-150.0,7.938e-05,2]
[343908061,1733032238411,-150.0,7.939e-05,2]
[343908062,1733032238420,-150.0,7.95e-05,2]
[343908063,1733032238431,-150.0,7.958e-05,2]
[343908064,1733032238441,-150.0,7.958e-05,2]
[343908065,1733032238451,-150.0,7.959e-05,2]
[343908066,1733032238461,-150.0,7.961e-05,2]
[343908067,1733032238470,-150.0,7.962e-05,2]
[343908068,1733032238480,-31.4195044,7.964e-05,2]
[343908386,1733032243099,-150.0,7.723e-05,2]
[343908387,1733032243111,-150.0,7.747e-05,2]
[343908388,1733032243120,-150.0,7.794e-05,2]
[343908389,1733032243131,-150.0,7.828e-05,2]
[343908390,1733032243141,-150.0,7.897e-05,2]
[343908391,1733032243151,-150.0,7.962e-05,2]
[343908392,1733032243160,-118.5804956,7.964e-05,2]
[343908393,1733032243170,-150.0,7.988e-05,2]
[343908394,1733032243180,-150.0,7.989e-05,2]
[343908395,1733032243190,-150.0,7.992e-05,2]
[343908396,1733032243199,-133327.75191537,8e-05,2]
[343908397,1733032243219,-1156.33712976,8e-05,2]
[343908398,1733032243230,-402.25417411,8e-05,2]
[343908399,1733032243247,-4323.77697725,8e-05,2]
[343908400,1733032243467,-8467.90401911,8e-05,2]
[343908401,1733032246390,-23161.75,8e-05,2]
[343908403,1733032458374,465.08,6.894e-05,2]
[343908404,1733032519242,304.39,6.707e-05,2]
[343908405,1733032652980,225.48,6.707e-05,2]
[343908407,1733033034828,1081.91,6.71e-05,2]
[343908408,1733033065794,2743.24,6.71e-05,2]
[343908409,1733033109677,302.0,0.00019,30]
[343908410,1733033297803,-225.48,7.546e-05,2]
[343908411,1733033297825,-301.47,7.59e-05,2]
[343908412,1733033297846,-1004.5,7.59e-05,2]
[343908413,1733033297868,-163.10183342,7.662e-05,2]
[343908414,1733033297889,-912.6,7.69e-05,2]
[343908415,1733033297913,-150.0,7.692e-05,2]
[343908416,1733033297953,-150.0,7.726e-05,2]
[343908417,1733033297999,-150.0,7.728e-05,2]
[343908418,1733033298041,-973.17,7.73e-05,2]
[343908419,1733033298089,-150.0,7.741e-05,2]
[343908420,1733033298140,-150.0,7.745e-05,2]
[343908421,1733033298182,-150.0,7.747e-05,2]
[343908422,1733033298222,-150.0,7.751e-05,2]
[343908423,1733033298263,-150.0,7.755e-05,2]
[343908424,1733033298305,-150.0,7.773e-05,2]
[343908425,1733033298343,-150.0,7.774e-05,2]
[343908426,1733033298384,-150.0,7.784e-05,2]
[343908427,1733033298424,-150.0,7.786e-05,2]
[343908428,1733033298465,-150.0,7.786e-05,2]
[343908429,1733033298504,-150.0,7.794e-05,2]
[343908430,1733033298543,-150.0,7.799e-05,2]
[343908431,1733033298581,-150.0,7.804e-05,2]
[343908432,1733033298618,-150.0,7.813e-05,2]
[343908433,1733033298658,-150.0,7.819e-05,2]
[343908434,1733033298696,-150.0,7.829e-05,2]
[343908435,1733033298734,-150.0,7.829e-05,2]
[343908436,1733033298776,-150.0,7.833e-05,2]
[343908437,1733033298815,-150.0,7.839e-05,2]
[343908438,1733033298852,-150.0,7.841e-05,2]
[343908439,1733033298890,-150.0,7.842e-05,2]
[343908440,1733033298928,-300.0,7.851e-05,2]
[343908441,1733033298968,-150.0,7.855e-05,2]
[343908442,1733033299006,-150.0,7.861e-05,2]
[343908443,1733033299042,-150.0,7.868e-05,2]
[343908444,1733033299082,-150.0,7.869e-05,2]
[343908445,1733033299121,-150.0,7.88e-05,2]
[343908446,1733033299158,-150.0,7.88e-05,2]
[343908447,1733033299194,-150.0,7.887e-05,2]
[343908448,1733033299232,-150.0,7.888e-05,2]
[343908449,1733033299269,-150.0,7.888e-05,2]
[343908450,1733033299306,-150.0,7.888e-05,2]
[343908451,1733033299351,-150.0,7.893e-05,2]
[343908452,1733033299406,-150.0,7.901e-05,2]
[343908453,1733033299453,-150.0,7.906e-05,2]
[343908454,1733033299498,-150.0,7.906e-05,2]
[343908455,1733033299540,-150.0,7.911e-05,2]
[343908456,1733033299581,-150.0,7.921e-05,2]
[343908457,1733033299623,-150.0,7.921e-05,2]
[343908458,1733033299664,-150.0,7.926e-05,2]
[343908459,1733033299703,-150.0,7.926e-05,2]
[343908460,1733033299740,-150.0,7.928e-05,2]
[343908461,1733033299778,-150.0,7.929e-05,2]
[343908462,1733033299816,-150.0,7.93e-05,2]
[343908463,1733033299865,-150.0,7.931e-05,2]
[343908464,1733033299909,-150.0,7.938e-05,2]
[343908465,1733033299940,-150.0,7.957e-05,2]
[343908466,1733033299966,-150.0,7.958e-05,2]
[343908467,1733033300362,-150.0,7.959e-05,2]
[343908468,1733033300437,-150.0,7.96e-05,2]
[343908469,1733033300461,-150.0,7.961e-05,2]
[343908470,1733033300486,-150.0,7.962e-05,2]
[343908471,1733033300511,-150.0,7.965e-05,2]
[343908472,1733033300535,-150.0,7.968e-05,2]
[343908473,1733033300559,-150.0,7.97e-05,2]
[343908474,1733033300581,-159.855648,7.973e-05,2]
[343908475,1733033300605,-150.0,7.974e-05,2]
[343908476,1733033300629,-150.0,7.978e-05,2]
[343908477,1733033300652,-150.0,7.983e-05,2]
[343908478,1733033300676,-150.0,7.985e-05,2]
[343908479,1733033300701,-150.0,7.991e-05,2]
[343908480,1733033300725,-150.0,7.991e-05,2]
[343908481,1733033300749,-150.0,7.995e-05,2]
[343908482,1733033300771,-1122.742,7.998e-05,2]
[343908483,1733033300793,-170.76282501,7.998e-05,2]
[343908484,1733033300818,-18727.88752004,7.999e-05,2]
[343908520,1733033433088,-300.0,7.997e-05,2]
[343908521,1733033433098,-150.0,7.998e-05,2]
[343908522,1733033433108,-150.0,7.998e-05,2]
[343908523,1733033433118,-150.0,7.998e-05,2]
[343908524,1733033433128,-150.0,7.998e-05,2]
[343908525,1733033433138,-150.0,7.998e-05,2]
[343908526,1733033433148,-150.0,7.998e-05,2]
[343908527,1733033433158,-150.0,7.998e-05,2]
[343908528,1733033433168,-150.0,7.998e-05,2]
[343908529,1733033433179,-150.0,7.998e-05,2]
[343908530,1733033433188,-150.0,7.998e-05,2]
[343908531,1733033433198,-150.0,7.998e-05,2]
[343908532,1733033433209,-150.0,7.998e-05,2]
[343908533,1733033433219,-150.0,7.998e-05,2]
[343908534,1733033433230,-150.0,7.998e-05,2]
[343908535,1733033433240,-150.0,7.998e-05,2]
[343908536,1733033433250,-150.0,7.998e-05,2]
[343908537,1733033433259,-2328.93253281,7.999e-05,2]
[343908538,1733033433271,-2391.36593347,7.999e-05,2]
[343908539,1733033433296,-4731.58052666,7.999e-05,2]
[343908540,1733033433308,-1512.68,7.999e-05,2]
[343908541,1733033433320,-1594.44501813,7.999e-05,2]
[343908547,1733033438651,-2937.52167477,7.999e-05,2]
[343908600,1733033440506,-590.48477263,7.999e-05,2]
[343908601,1733033440556,-395.95220038,7.999e-05,2]
[343908602,1733033440566,-363.47933949,7.999e-05,2]
[343908605,1733033443679,-136.52066051,7.999e-05,2]
[343908606,1733033443688,-2426.31231471,8e-05,2]
[343908607,1733033443703,-4422.76183995,8e-05,2]
[343908608,1733033443715,-3015.95413769,8e-05,2]
[343908609,1733033443758,-21321.69000001,8e-05,2]
[343908682,1733033446380,-340.837611,8e-05,2]
[343908683,1733033446393,-933.606,8e-05,2]
[343908684,1733033446484,-24125.0,8e-05,2]
[343908685,1733033446495,-18538.4253096,8e-05,2]
[343908687,1733033446663,-938.54999798,8e-05,2]
[343908941,1733033634643,-162.89776203,0.0001,7]
[343908942,1733033707602,-152.0,0.00015937,12]
[343908943,1733033716659,-152.0,0.00015667,11]
[343908944,1733033725095,-152.0,0.00015398,10]
[343908945,1733033759374,-152.0,0.00016206,13]
[343908984,1733034631423,-687.63183088,7.52e-05,2]
[343908986,1733034631435,-241.58816912,7.52e-05,2]
[343908987,1733034631444,-169.11,7.52e-05,2]
[343908988,1733034631454,-4904.0,7.587e-05,2]
[343908989,1733034631463,-173.39,7.587e-05,2]
[343908990,1733034631472,-300.0,7.699e-05,2]
[343908991,1733034631482,-8082.57092895,7.7e-05,2]
[343908992,1733034631491,-500.0,7.973e-05,2]
[343908993,1733034631500,-150.0,7.997e-05,2]
[343908994,1733034631510,-150.0,7.998e-05,2]
[343908995,1733034631520,-150.0,7.998e-05,2]
[343908996,1733034631529,-150.0,7.998e-05,2]
[343908997,1733034631538,-150.0,7.998e-05,2]
[343908998,1733034631547,-150.0,7.998e-05,2]
[343908999,1733034631556,-150.0,7.998e-05,2]
[343909000,1733034631565,-150.0,7.998e-05,2]
[343909001,1733034631575,-150.0,7.998e-05,2]
[343909002,1733034631585,-150.0,7.998e-05,2]
[343909003,1733034631595,-150.0,7.998e-05,2]
[343909004,1733034631604,-150.0,7.998e-05,2]
[343909005,1733034631613,-150.0,7.998e-05,2]
[343909006,1733034631623,-150.0,7.998e-05,2]
[343909007,1733034631632,-150.0,7.998e-05,2]
[343909008,1733034631641,-150.0,7.998e-05,2]
[343909009,1733034631846,-150.0,7.998e-05,2]
[343909010,1733034631863,-1290.31281867,7.999e-05,2]
[343909011,1733034631873,-500.0,7.999e-05,2]
[343909012,1733034631883,-3755.0,8e-05,2]
[343909013,1733034631894,-816.0,8e-05,2]
[343909015,1733034631903,-1262.0,8e-05,2]
[343909017,1733034631912,-534.0,8e-05,2]
[343909018,1733034631921,-150.0,8e-05,2]
[343909019,1733034631931,-630.0,8e-05,2]
[343909020,1733034631940,-6445.36312459,8e-05,2]
[343909021,1733034631958,-9781.79825125,8e-05,2]
[343909022,1733034631976,-2901.22842254,8e-05,2]
[343909023,1733034631987,-118309.85978636,8e-05,2]
[343909024,1733034631998,-938570.48640996,8e-05,2]
[343909025,1733034632030,-4130.10143945,8e-05,2]
[343909026,1733034637509,-13020.36526756,8e-05,2]
[343909044,1733034639565,-345.76922162,8e-05,2]
[343909045,1733034639785,-3038.65373486,8e-05,2]
[343909046,1733034639803,-4019.09127962,8e-05,2]
[343909047,1733034639815,-315.6,8e-05,2]
[343909053,1733034642657,-2998.98346921,8e-05,2]
[343909225,1733034645483,-9281.5,8e-05,2]
[343909226,1733034645627,-13160.88484252,8e-05,2]
[343909228,1733034645954,-11074.79280428,8e-05,2]
[343909229,1733034645966,-3810.32456387,8e-05,2]
[343909230,1733034666186,800.0,7e-05,2]
[343909231,1733034668608,800.0,7.1e-05,2]
[343909232,1733034668628,800.0,7.1e-05,2]
[343909234,1733034981760,300.0,0.00019,30]
[343909235,1733035132882,-600.0,7.2e-05,2]
[343909236,1733035440468,150.0,7.148e-05,2]
[343909237,1733035440491,116.82,7.148e-05,2]
[343909240,1733035628313,600.0,7e-05,2]
[343909241,1733035630414,1300.0,7.1e-05,2]
[343909242,1733035693514,23900.0,7.131e-05,2]
[343909247,1733035784223,250.0,7.12e-05,2]
[343909264,1733035831592,-600.76,7.183e-05,2]
[343909266,1733035831602,-1212.81961292,7.2e-05,2]
[343909269,1733035831651,-787.18038708,7.2e-05,2]
[343909270,1733035831661,-2700.0,7.3e-05,2]
[343909271,1733035831671,-3400.0,7.4e-05,2]
[343909272,1733035831680,-600.0,7.5e-05,2]
[343909273,1733035831690,-500.0,7.534e-05,2]
[343909274,1733035831699,-300.0,7.599e-05,2]
[343909275,1733035831710,-600.0,7.6e-05,2]
[343909276,1733035831719,-150.0,7.687e-05,2]
[343909277,1733035831729,-600.0,7.7e-05,2]
[343909278,1733035831739,-600.0,7.8e-05,2]
[343909279,1733035831748,-1339.0,7.9e-05,2]
[343909280,1733035831758,-150.0,7.989e-05,2]
[343909281,1733035831767,-1000.0,7.99e-05,2]
[343909282,1733035831777,-622.0,7.99e-05,3]
[343909283,1733035831787,-1000.0,7.99e-05,2]
[343909284,1733035831796,-1000.0,7.99e-05,2]
[343909285,1733035831805,-1000.0,7.99e-05,2]
[343909286,1733035831815,-1000.0,7.99e-05,2]
[343909287,1733035831824,-1000.0,7.99e-05,2]
[343909288,1733035831834,-1000.0,7.99e-05,2]
[343909289,1733035831843,-371.0,7.99e-05,2]
[343909290,1733035831853,-1000.0,7.99e-05,2]
[343909291,1733035831862,-1000.0,7.99e-05,2]
[343909292,1733035831871,-1000.0,7.99e-05,2]
[343909293,1733035831881,-1000.0,7.99e-05,2]
[343909294,1733035831891,-1000.0,7.99e-05,2]
[343909295,1733035831900,-1000.0,7.99e-05,2]
[343909296,1733035831910,-1000.0,7.99e-05,2]
[343909297,1733035831919,-790.0,7.99e-05,3]
[343909298,1733035831930,-1000.0,7.99e-05,3]
[343909299,1733035831939,-1000.0,7.99e-05,3]
[343909300,1733035831948,-1000.0,7.99e-05,3]
[343909301,1733035831960,-1000.0,7.99e-05,3]
[343909302,1733035831970,-1000.0,7.99e-05,3]
[343909303,1733035831979,-1000.0,7.99e-05,2]
[343909304,1733035831988,-1000.0,7.99e-05,2]
[343909306,1733035831998,-1000.0,7.99e-05,2]
[343909307,1733035832007,-1000.0,7.99e-05,2]
[343909308,1733035832016,-1003.0,7.99e-05,2]
[343909309,1733035832026,-1000.0,7.99e-05,2]
[343909310,1733035832035,-1000.0,7.99e-05,2]
[343909311,1733035832045,-635.0,7.99e-05,3]
[343909312,1733035832054,-1000.0,7.99e-05,3]
[343909313,1733035832064,-1000.0,7.99e-05,2]
[343909314,1733035832073,-150.0,7.998e-05,2]
[343909315,1733035832083,-150.0,7.998e-05,2]
[343909316,1733035832093,-150.0,7.998e-05,2]
[343909317,1733035832103,-150.0,7.998e-05,2]
[343909318,1733035832113,-150.0,7.998e-05,2]
[343909319,1733035832122,-150.0,7.998e-05,2]
[343909320,1733035832131,-150.0,7.998e-05,2]
[343909321,1733035832140,-150.0,7.998e-05,2]
[343909322,1733035832151,-150.0,7.998e-05,2]
[343909323,1733035832161,-150.0,7.998e-05,2]
[343909325,1733035832170,-150.0,7.998e-05,2]
[343909326,1733035832180,-150.0,7.998e-05,2]
[343909327,1733035832190,-150.0,7.998e-05,2]
[343909328,1733035832200,-150.0,7.998e-05,2]
[343909329,1733035832211,-150.0,7.998e-05,2]
[343909330,1733035832436,-150.0,7.998e-05,2]
[343909331,1733035832447,-645.15640933,7.999e-05,2]